fUSD/lending_fUSD_20260427
["ID","MTS","AMOUNT","RATE_DAILY","PERIOD"]
[421188490,1777225849824,-707.97487406,0.00021564,2]
[421188491,1777225849832,-161.49327436,0.00021564,2]
[421188492,1777225849842,-12416.54962031,0.00021581,2]
[421188493,1777225849852,-500.0,0.00021584,2]
[421188494,1777225849863,-203.2338541,0.00021586,2]
[421188495,1777225849872,-1226.14,0.000216,2]
[421188496,1777225849881,-2364.72,0.000216,2]
[421188497,1777225849891,-1651.81367706,0.00021653,2]
[421188498,1777225849901,-200.0,0.00021653,2]
[421188499,1777225849911,-264.47740636,0.00021653,2]
[421188500,1777225849921,-225.18697532,0.00021653,2]
[421188501,1777225849930,-151.0,0.00021698,2]
[421188502,1777225849939,-10000.0,0.00021698,2]
[421188503,1777225849948,-300.0,0.00021742,2]
[421188504,1777225849957,-300.0,0.00021742,2]
[421188505,1777225849967,-300.0,0.00021742,2]
[421188506,1777225849976,-300.0,0.00021742,2]
[421188507,1777225849985,-300.0,0.00021742,2]
[421188508,1777225849994,-300.0,0.00021742,2]
[421188509,1777225850003,-300.0,0.00021742,2]
[421188510,1777225850012,-300.0,0.00021742,2]
[421188511,1777225850023,-300.0,0.00021742,2]
[421188512,1777225850032,-196.0,0.00021742,2]
[421188513,1777225850042,-1474.0,0.00021742,2]
[421188514,1777225850051,-530.23504992,0.00021764,2]
[421188515,1777225850061,-1620.40037975,0.00021764,2]
[421188516,1777225850070,-1517.07299548,0.00021764,2]
[421188517,1777225850080,-1721.00173662,0.00021764,2]
[421188518,1777225850090,-2500.0,0.00021764,2]
[421188519,1777225850099,-150.0,0.00021768,2]
[421188520,1777225850108,-207.0,0.00021768,2]
[421188521,1777225850118,-1474.0,0.00021779,2]
[421188522,1777225850127,-500.0,0.00021801,2]
[421188523,1777225850136,-278.0,0.00021837,2]
[421188524,1777225850146,-2736.0165943,0.00021841,2]
[421188525,1777225850155,-5000.0,0.000219,7]
[421188526,1777225850164,-151.0,0.00021918,2]
[421188527,1777225850173,-151.0,0.00021918,2]
[421188528,1777225850182,-151.0,0.00021918,2]
[421188529,1777225850192,-151.0,0.00021918,2]
[421188530,1777225850201,-151.0,0.00021918,2]
[421188531,1777225850210,-151.0,0.00021918,2]
[421188532,1777225850220,-151.0,0.00021918,2]
[421188533,1777225850229,-151.0,0.00021918,2]
[421188534,1777225850239,-151.0,0.00021918,2]
[421188535,1777225850248,-270.004532,0.00021918,2]
[421188536,1777225850258,-153.34338564,0.00021918,2]
[421188537,1777225850268,-150.0,0.00021947,2]
[421188538,1777225850277,-150.0,0.00021947,2]
[421188539,1777225850287,-210.0,0.00021947,2]
[421188540,1777225850296,-1474.0,0.00021953,2]
[421188541,1777225850306,-1474.0,0.00021982,2]
[421188542,1777225850315,-315.842369,0.00021985,2]
[421188543,1777225850324,-315.842369,0.00021985,2]
[421188544,1777225850333,-315.842369,0.00021985,2]
[421188545,1777225850342,-315.842364,0.00021985,2]
[421188546,1777225850351,-666.57770748,0.00022,2]
[421188547,1777225850361,-408.0,0.00022,2]
[421188548,1777225850370,-580.0,0.00022,2]
[421188549,1777225850380,-613.0,0.00022,2]
[421188550,1777225850390,-1107.27,0.00022,30]
[421188551,1777225850399,-200.0,0.00022,2]
[421188552,1777225850408,-202.0,0.00022,2]
[421188553,1777225850416,-836.0,0.00022,2]
[421188554,1777225850426,-309.0,0.00022,2]
[421188555,1777225850435,-294.0,0.00022,2]
[421188556,1777225850444,-351.0,0.00022,2]
[421188557,1777225850453,-162.25551732,0.00022,7]
[421188558,1777225850463,-570.0,0.00022,2]
[421188559,1777225850472,-1474.0,0.00022017,2]
[421188560,1777225850481,-1965.0,0.00022038,2]
[421188561,1777225850491,-1474.0,0.00022059,2]
[421188562,1777225850501,-397.87254896,0.00022068,2]
[421188563,1777225850510,-870.18316473,0.00022068,2]
[421188564,1777225850519,-1965.0,0.0002208,2]
[421188565,1777225850528,-300.0,0.00022089,2]
[421188566,1777225850538,-15022.67,0.0002209,30]
[421188567,1777225850548,-2026.4,0.00022099,2]
[421188568,1777225850558,-500.0,0.00022099,2]
[421188569,1777225850567,-57983.84,0.000221,7]
[421188570,1777225850577,-1965.0,0.00022103,2]
[421188571,1777225850586,-1474.0,0.00022118,2]
[421188572,1777225850595,-300.0,0.00022143,2]
[421188573,1777225850604,-300.0,0.00022143,2]
[421188574,1777225850613,-666.0,0.00022143,2]
[421188575,1777225850622,-1474.0,0.00022165,2]
[421188576,1777225850631,-155.0,0.000222,2]
[421188577,1777225850640,-1712.93078312,0.00022201,2]
[421188578,1777225850649,-200.0,0.00022201,2]
[421188579,1777225850660,-233.51889341,0.00022201,2]
[421188580,1777225850669,-500.0,0.00022273,2]
[421188581,1777225850678,-150.0,0.00022273,2]
[421188582,1777225850687,-500.0,0.00022273,2]
[421188583,1777225850696,-150.0,0.00022279,20]
[421188584,1777225850705,-500.0,0.00022279,2]
[421188585,1777225850715,-500.0,0.00022279,2]
[421188586,1777225850723,-500.0,0.00022279,2]
[421188587,1777225850732,-536.18,0.00022279,2]
[421188588,1777225850742,-500.42,0.00022279,2]
[421188589,1777225850751,-300.0,0.00022279,2]
[421188590,1777225850760,-300.0,0.00022279,2]
[421188591,1777225850769,-264.50458982,0.00022279,2]
[421188592,1777225850778,-666.0,0.00022279,2]
[421188593,1777225850787,-73086.4481384,0.0002228,2]
[421188594,1777225850796,-19946.550868,0.0002228,2]
[421188595,1777225850806,-4878.3710768,0.0002228,2]
[421188596,1777225850815,-1630.7766136,0.0002228,2]
[421188597,1777225850825,-1474.0,0.0002228,2]
[421188598,1777225850834,-161.3034534,0.00022312,2]
[421188599,1777225850844,-152.0,0.00022327,7]
[421188600,1777225850853,-152.0,0.00022327,7]
[421188601,1777225850862,-152.0,0.00022334,30]
[421188602,1777225850871,-152.0,0.00022349,7]
[421188603,1777225850880,-152.0,0.00022349,7]
[421188604,1777225850889,-152.0,0.00022356,30]
[421188605,1777225850898,-1474.0,0.00022358,2]
[421188606,1777225850908,-1474.0,0.0002236,2]
[421188607,1777225850918,-610.4878208,0.00022389,2]
[421188608,1777225850927,-1117.0,0.00022453,2]
[421188609,1777225850936,-500.0,0.0002246,2]
[421188610,1777225850945,-500.0,0.0002246,2]
[421188611,1777225850954,-1474.0,0.0002246,2]
[421188612,1777225850963,-271.64,0.00022466,2]
[421188613,1777225850972,-479.45,0.00022466,2]
[421188614,1777225850981,-210.25,0.00022466,2]
[421188615,1777225850990,-394.98,0.00022466,2]
[421188616,1777225850999,-2026.4,0.00022467,2]
[421188617,1777225851009,-500.0,0.00022467,2]
[421188618,1777225851018,-589.02190145,0.00022467,2]
[421188619,1777225851027,-247.40976756,0.00022467,2]
[421188620,1777225851036,-536.18,0.00022467,2]
[421188621,1777225851045,-500.42,0.00022467,2]
[421188622,1777225851055,-282627.69591173,0.00022468,2]
[421188623,1777225851064,-1474.0,0.00022513,2]
[421188624,1777225851074,-1474.0,0.00022516,2]
[421188625,1777225851083,-1474.0,0.00022522,2]
[421188626,1777225851092,-151.0,0.00022571,7]
[421188627,1777225851102,-1226.14,0.000226,7]
[421188628,1777225851111,-2364.72,0.000226,7]
[421188629,1777225851120,-4072.5,0.00022695,2]
[421188630,1777225851129,-1776.30922209,0.00022749,2]
[421188631,1777225851139,-200.0,0.00022749,2]
[421188632,1777225851148,-242.15909246,0.00022749,2]
[421188633,1777225851157,-1000.0,0.00022821,2]
[421188634,1777225851168,-250.0,0.00022821,2]
[421188635,1777225851178,-541.41301912,0.00022821,2]
[421188636,1777225851187,-150.0,0.00022857,2]
[421188637,1777225851196,-6405.09273604,0.0002286,2]
[421188638,1777225851205,-44078.0,0.00022904,2]
[421188639,1777225851215,-300.0,0.00022925,2]
[421188640,1777225851224,-2026.4,0.00022926,2]
[421188641,1777225851234,-16307.7908778,0.00022926,2]
[421188642,1777225851243,-4450.6770895,0.00022926,2]
[421188643,1777225851253,-1088.5117196,0.00022926,2]
[421188644,1777225851263,-363.8754469,0.00022926,2]
[421188645,1777225851272,-167.45,0.00022977,7]
[421188646,1777225851281,-167.45,0.00022977,7]
[421188647,1777225851291,-167.45,0.00022977,7]
[421188648,1777225851300,-167.45,0.00022977,7]
[421188649,1777225851309,-167.45,0.00022977,7]
[421188650,1777225851318,-167.43,0.00022977,7]
[421188651,1777225851327,-408.0,0.00023,2]
[421188652,1777225851338,-580.0,0.00023,2]
[421188653,1777225851347,-613.0,0.00023,2]
[421188654,1777225851357,-200.0,0.00023,2]
[421188655,1777225851366,-202.0,0.00023,2]
[421188656,1777225851375,-836.0,0.00023,2]
[421188657,1777225851384,-309.0,0.00023,2]
[421188659,1777225851393,-294.0,0.00023,2]
[421188660,1777225851402,-351.0,0.00023,2]
[421188661,1777225851411,-162.25551732,0.00023,7]
[421188662,1777225851420,-570.0,0.00023,2]
[421188663,1777225851429,-170.0,0.00023,7]
[421188664,1777225851439,-500.0,0.00023,2]
[421188665,1777225851448,-3531.0,0.00023001,2]
[421188666,1777225851457,-623.0,0.00023001,2]
[421188667,1777225851467,-1350.0,0.00023001,2]
[421188668,1777225851479,-1060.324,0.00023001,2]
[421188669,1777225851489,-1266.0,0.00023001,2]
[421188670,1777225851498,-927.0,0.00023001,2]
[421188671,1777225851507,-3782.0,0.00023001,2]
[421188672,1777225851516,-2475.0,0.00023001,2]
[421188673,1777225851524,-500.0,0.00023099,2]
[421188674,1777225851533,-536.18,0.00023099,2]
[421188675,1777225851542,-500.42,0.00023099,2]
[421188676,1777225851554,-57983.84,0.000231,7]
[421188677,1777225851563,-301.0,0.00023192,2]
[421188678,1777225851573,-695.39793187,0.00023295,2]
[421188679,1777225851582,-1842.03266331,0.00023297,2]
[421188680,1777225851591,-200.0,0.00023297,2]
[421188681,1777225851600,-251.11897888,0.00023297,2]
[421188682,1777225851609,-150.0,0.00023311,2]
[421188683,1777225851618,-150.0,0.00023311,2]
[421188684,1777225851627,-150.0,0.00023311,2]
[421188685,1777225851636,-150.0,0.00023311,2]
[421188686,1777225851646,-223.0,0.00023311,2]
[421188687,1777225851655,-1500.0,0.00023368,2]
[421188688,1777225851664,-2000.0,0.00023395,2]
[421188689,1777225851673,-9967.44942207,0.00023484,2]
[421188691,1777225852743,-2449.10019824,0.00023484,2]
[421188692,1777225852753,-2000.0,0.00023497,2]
[421188693,1777225852762,-2000.0,0.00023497,2]
[421188694,1777225852772,-2000.0,0.00023497,2]
[421188695,1777225852782,-2000.0,0.00023497,2]
[421188696,1777225852791,-2000.0,0.00023497,2]
[421188697,1777225852801,-2000.0,0.00023497,2]
[421188698,1777225852810,-2000.0,0.00023497,2]
[421188699,1777225852820,-2000.0,0.00023497,2]
[421188700,1777225852830,-2000.0,0.00023497,2]
[421188701,1777225852839,-2000.0,0.00023497,2]
[421188702,1777225852850,-1250.0,0.000235,3]
[421188703,1777225852860,-155.0,0.00023508,2]
[421188704,1777225852871,-167.45,0.00023525,7]
[421188705,1777225852881,-167.45,0.00023525,7]
[421188706,1777225852891,-167.45,0.00023525,7]
[421188707,1777225852902,-167.45,0.00023525,7]
[421188708,1777225852913,-167.45,0.00023525,7]
[421188709,1777225852923,-167.43,0.00023525,7]
[421188710,1777225852933,-1014.0,0.000236,2]
[421188711,1777225852944,-1117.0,0.00023635,2]
[421188712,1777225852954,-150.0,0.00023671,2]
[421188713,1777225852964,-150.0,0.00023671,2]
[421188714,1777225852974,-150.0,0.00023671,2]
[421188715,1777225852984,-274.0,0.00023671,2]
[421188716,1777225852994,-151.88339601,0.00023796,2]
[421188717,1777225853004,-1226.14,0.000238,7]
[421188718,1777225853015,-167.45,0.00023801,14]
[421188719,1777225853024,-167.45,0.00023801,14]
[421188720,1777225853034,-167.45,0.00023801,14]
[421188721,1777225853044,-167.45,0.00023801,14]
[421188722,1777225853055,-167.45,0.00023801,14]
[421188723,1777225853064,-167.43,0.00023801,14]
[421188724,1777225853074,-1910.18787185,0.00023845,2]
[421188725,1777225853084,-200.0,0.00023845,2]
[421188726,1777225853094,-260.4103811,0.00023845,2]
[421188727,1777225853104,-150.0,0.00023881,2]
[421188728,1777225853113,-150.0,0.00023881,2]
[421188729,1777225853123,-265.836,0.00023881,2]
[421188730,1777225853132,-150.478,0.00023881,2]
[421188731,1777225853142,-150.0,0.00023881,2]
[421188732,1777225853151,-273.18,0.000239,2]
[421188733,1777225853161,-8010.1,0.000239,2]
[421188734,1777225853170,-4091.83,0.000239,2]
[421188735,1777225853180,-4800.6,0.000239,2]
[421188736,1777225853190,-300.0,0.00023915,2]
[421188737,1777225853200,-666.0,0.00023915,2]
[421188738,1777225853210,-1615.68290955,0.00023916,2]
[421188739,1777225853220,-1100.0,0.00023922,2]
[421188740,1777225853230,-1100.0,0.00023922,2]
[421188741,1777225853242,-1100.0,0.00023922,2]
[421188742,1777225853251,-1100.0,0.00023922,2]
[421188743,1777225853261,-1100.0,0.00023922,2]
[421188744,1777225853271,-1100.0,0.00023922,2]
[421188745,1777225853280,-1100.0,0.00023922,2]
[421188746,1777225853290,-1100.0,0.00023922,2]
[421188747,1777225853301,-1100.0,0.00023922,2]
[421188748,1777225853311,-935.0,0.00023922,2]
[421188749,1777225853320,-7791.74244541,0.00023951,2]
[421188750,1777225853330,-300.0,0.00023966,2]
[421188751,1777225853339,-666.0,0.00023966,2]
[421188752,1777225853348,-500.0,0.00023966,2]
[421188753,1777225853358,-500.0,0.00023999,2]
[421188754,1777225853367,-626.08,0.00023999,2]
[421188755,1777225853377,-500.0,0.00023999,2]
[421188756,1777225853387,-1476.72,0.00023999,2]
[421188757,1777225853396,-776.82,0.00023999,2]
[421188758,1777225853404,-500.0,0.00023999,2]
[421188759,1777225853414,-500.0,0.00023999,2]
[421188760,1777225853424,-648.72,0.00023999,2]
[421188761,1777225853433,-500.0,0.00023999,2]
[421188762,1777225853442,-535.54,0.00023999,2]
[421188763,1777225853453,-587.8,0.00023999,2]
[421188764,1777225853462,-847.22,0.00023999,2]
[421188765,1777225853471,-1249.43,0.00023999,2]
[421188766,1777225853481,-773.2,0.00023999,2]
[421188767,1777225853490,-500.0,0.00023999,2]
[421188768,1777225853499,-624.43,0.00023999,2]
[421188769,1777225853509,-232.0,0.00024,2]
[421188770,1777225853519,-417.25859059,0.00024,2]
[421188771,1777225853528,-580.84184338,0.00024,2]
[421188772,1777225853538,-621.24800393,0.00024,2]
[421188773,1777225853547,-200.0,0.00024,2]
[421188774,1777225853556,-202.0,0.00024,2]
[421188775,1777225853566,-836.0,0.00024,2]
[421188776,1777225853575,-309.0,0.00024,2]
[421188777,1777225853584,-294.0,0.00024,2]
[421188778,1777225853594,-351.0,0.00024,2]
[421188779,1777225853603,-162.25551732,0.00024,7]
[421188780,1777225853612,-570.0,0.00024,2]
[421188781,1777225853621,-167.45,0.00024073,7]
[421188782,1777225853630,-167.45,0.00024073,7]
[421188783,1777225853640,-167.45,0.00024073,7]
[421188784,1777225853649,-167.45,0.00024073,7]
[421188785,1777225853658,-167.45,0.00024073,7]
[421188786,1777225853667,-167.43,0.00024073,7]
[421188787,1777225853676,-2026.4,0.00024099,2]
[421188788,1777225853685,-500.0,0.00024099,2]
[421188789,1777225853695,-536.18,0.00024099,2]
[421188790,1777225853705,-500.42,0.00024099,2]
[421188791,1777225854122,-57983.84,0.000241,7]
[421188792,1777225854133,-237.68,0.0002411,2]
[421188793,1777225854142,-419.52,0.0002411,2]
[421188794,1777225854152,-214.10672339,0.00024123,2]
[421188795,1777225854161,-170.0,0.00024164,7]
[421188796,1777225854171,-151.0,0.00024171,7]
[421188797,1777225854180,-29999.99,0.00024174,2]
[421188798,1777225854190,-6712.46,0.00024174,2]
[421188799,1777225854199,-167.45,0.00024349,14]
[421188800,1777225854209,-167.45,0.00024349,14]
[421188801,1777225854219,-167.45,0.00024349,14]
[421188802,1777225854228,-167.45,0.00024349,14]
[421188803,1777225854237,-167.45,0.00024349,14]
[421188804,1777225854247,-167.43,0.00024349,14]
[421188805,1777225854256,-150.1321572,0.00024362,2]
[421188806,1777225854266,-1980.86482311,0.00024393,2]
[421188807,1777225854275,-200.0,0.00024393,2]
[421188808,1777225854285,-270.0455652,0.00024393,2]
[421188809,1777225854294,-180.0,0.00024512,2]
[421188810,1777225854305,-1443.5,0.0002463,2]
[421188811,1777225854315,-1325.0,0.0002463,2]
[421188812,1777225854324,-1833.5,0.0002463,2]
[421188813,1777225854333,-1388.5,0.0002463,2]
[421188814,1777225854344,-1237.06858779,0.0002463,2]
[421188815,1777225854354,-618.5342939,0.0002463,2]
[421188816,1777225854365,-309.26714694,0.0002463,2]
[421188817,1777225854375,-154.63357347,0.0002463,2]
[421188818,1777225854384,-150.1321572,0.00024655,7]
[421188819,1777225854394,-150.0,0.00024658,2]
[421188820,1777225854402,-300.0,0.00024658,2]
[421188821,1777225854411,-300.0,0.00024658,2]
[421188822,1777225854421,-300.0,0.00024658,2]
[421188823,1777225854430,-300.0,0.00024658,2]
[421188824,1777225854439,-300.0,0.00024658,2]
[421188825,1777225854449,-300.0,0.00024658,2]
[421188826,1777225854458,-300.0,0.00024658,2]
[421188827,1777225854467,-300.0,0.00024658,2]
[421188828,1777225854477,-300.0,0.00024658,2]
[421188829,1777225854486,-300.0,0.00024658,2]
[421188830,1777225854495,-300.0,0.00024658,2]
[421188831,1777225854504,-300.0,0.00024658,2]
[421188832,1777225854513,-300.0,0.00024658,2]
[421188833,1777225854522,-300.0,0.00024658,2]
[421188834,1777225854532,-300.0,0.00024658,2]
[421188835,1777225854541,-300.0,0.00024658,2]
[421188836,1777225854551,-300.0,0.00024658,2]
[421188837,1777225854561,-300.0,0.00024658,2]
[421188838,1777225854570,-10000.0,0.00024709,2]
[421188839,1777225854580,-151.88339601,0.00024736,2]
[421188840,1777225854589,-4072.5,0.00024781,2]
[421188841,1777225854599,-300.0,0.00024799,10]
[421188842,1777225854608,-666.0,0.00024799,2]
[421188843,1777225854618,-1117.0,0.00024879,2]
[421188844,1777225854627,-167.45,0.00024896,14]
[421188845,1777225854636,-167.45,0.00024896,14]
[421188846,1777225854645,-167.45,0.00024896,14]
[421188847,1777225854655,-167.45,0.00024896,14]
[421188848,1777225854665,-167.45,0.00024896,14]
[421188849,1777225854675,-167.43,0.00024896,14]
[421188850,1777225854684,-151.0,0.00024897,7]
[421188851,1777225854693,-500.0,0.00024899,2]
[421188852,1777225854703,-500.0,0.00024899,2]
[421188853,1777225854712,-150.0,0.000249,10]
[421188854,1777225854722,-6700.0,0.000249,9]
[421188855,1777225854731,-80701.055547,0.000249,2]
[421188856,1777225854740,-2054.15682157,0.00024941,2]
[421188857,1777225854751,-200.0,0.00024941,2]
[421188858,1777225854760,-280.03725112,0.00024941,2]
[421188859,1777225854769,-350.0,0.00024942,2]
[421188860,1777225854779,-350.0,0.00024942,2]
[421188861,1777225854788,-350.0,0.00024942,2]
[421188862,1777225854797,-350.0,0.00024942,2]
[421188863,1777225854807,-350.0,0.00024942,2]
[421188864,1777225854816,-350.0,0.00024942,2]
[421188865,1777225854825,-350.0,0.00024942,2]
[421188866,1777225854834,-350.0,0.00024942,2]
[421188867,1777225854844,-391.0,0.00024942,2]
[421188868,1777225854854,-150.1321572,0.00024948,7]
[421188869,1777225854864,-160.0,0.00025,7]
[421188870,1777225854873,-213.0,0.00025,2]
[421188871,1777225854883,-221.0,0.00025,2]
[421188872,1777225854892,-839.70153168,0.00025,2]
[421188873,1777225854902,-321.0,0.00025,2]
[421188874,1777225854911,-306.0,0.00025,2]
[421188875,1777225854920,-363.56230752,0.00025,2]
[421188876,1777225854930,-7979.42,0.00025,7]
[421188877,1777225854939,-576.82597169,0.00025,2]
[421188878,1777225854949,-550.0,0.00025,2]
[421188879,1777225854958,-1365.92,0.000251,2]
[421188880,1777225854968,-250.0,0.00025205,2]
[421188881,1777225854977,-150.1321572,0.00025242,14]
[421188882,1777225854986,-12416.54962031,0.00025387,2]
[421188883,1777225854995,-167.45,0.00025443,7]
[421188884,1777225855005,-167.45,0.00025443,7]
[421188885,1777225855015,-167.45,0.00025443,7]
[421188886,1777225855024,-167.45,0.00025443,7]
[421188887,1777225855034,-167.45,0.00025443,7]
[421188888,1777225855044,-167.42,0.00025443,7]
[421188889,1777225855054,-290.39862941,0.00025489,2]
[421188890,1777225855064,-151.0,0.00025497,7]
[421188891,1777225855073,-178.0,0.00025519,2]
[421188892,1777225855083,-150.1321572,0.00025535,30]
[421188893,1777225855092,-7979.42,0.000256,7]
[421188894,1777225855102,-151.88339601,0.00025675,2]
[421188895,1777225855111,-2026.4,0.00025732,2]
[421188896,1777225855121,-500.0,0.00025732,2]
[421188897,1777225855130,-500.0,0.00025733,2]
[421188898,1777225855139,-626.08,0.00025733,2]
[421188899,1777225855149,-500.0,0.00025733,2]
[421188900,1777225855158,-1476.72,0.00025733,2]
[421188901,1777225855168,-776.82,0.00025733,2]
[421188902,1777225855178,-500.0,0.00025733,2]
[421188903,1777225855188,-500.0,0.00025733,2]
[421188904,1777225855197,-648.72,0.00025733,2]
[421188905,1777225855207,-500.0,0.00025733,2]
[421188906,1777225855217,-535.54,0.00025733,2]
[421188907,1777225855227,-587.8,0.00025733,2]
[421188908,1777225855236,-847.22,0.00025733,2]
[421188909,1777225855246,-1249.43,0.00025733,2]
[421188910,1777225855256,-773.2,0.00025733,2]
[421188911,1777225855265,-500.0,0.00025733,2]
[421188912,1777225855276,-624.43,0.00025733,2]
[421188913,1777225855285,-150.0,0.00025818,2]
[421188914,1777225855295,-150.0,0.00025818,2]
[421188915,1777225855306,-150.0,0.00025818,2]
[421188916,1777225855315,-150.0,0.00025818,2]
[421188917,1777225855326,-150.0,0.00025818,2]
[421188918,1777225855336,-150.0,0.00025818,2]
[421188919,1777225855347,-150.0,0.00025818,2]
[421188920,1777225855358,-295.0,0.00025818,2]
[421188921,1777225855368,-150.1321572,0.00025828,60]
[421188922,1777225855377,-155.0,0.000259,2]
[421188923,1777225855388,-3531.0,0.00026001,2]
[421188924,1777225855399,-623.0,0.00026001,2]
[421188925,1777225855408,-1350.0,0.00026001,2]
[421188926,1777225855418,-1048.0,0.00026001,2]
[421188927,1777225855428,-1266.0,0.00026001,2]
[421188928,1777225855440,-927.0,0.00026001,2]
[421188929,1777225855452,-3782.0,0.00026001,2]
[421188930,1777225855462,-2475.0,0.00026001,2]
[421188931,1777225855473,-299.66,0.00026027,7]
[421188932,1777225855483,-721.12765535,0.00026034,2]
[421188933,1777225855494,-301.1433787,0.00026037,2]
[421188934,1777225855504,-2000.0,0.00026038,2]
[421188935,1777225855514,-629.0,0.00026038,2]
[421188936,1777225855524,-550.0,0.00026038,2]
[421188937,1777225855533,-550.0,0.00026038,2]
[421188938,1777225855542,-550.0,0.00026038,2]
[421188939,1777225855551,-550.0,0.00026038,2]
[421188940,1777225855561,-550.0,0.00026038,2]
[421188941,1777225855570,-550.0,0.00026038,2]
[421188942,1777225855580,-550.0,0.00026038,2]
[421188943,1777225855589,-432.0,0.00026038,2]
[421188944,1777225855599,-506.67,0.000261,7]
[421188945,1777225855609,-7979.42,0.000261,7]
[421188946,1777225855618,-300.0,0.00026115,2]
[421188947,1777225855627,-300.0,0.00026115,2]
[421188948,1777225855637,-300.0,0.00026115,2]
[421188949,1777225855646,-300.0,0.00026115,2]
[421188950,1777225855656,-300.0,0.00026115,2]
[421188951,1777225855666,-300.0,0.00026115,2]
[421188952,1777225855676,-300.0,0.00026115,2]
[421188953,1777225855685,-300.0,0.00026115,2]
[421188954,1777225855695,-308.0,0.00026115,2]
[421188955,1777225855704,-150.1321572,0.00026121,60]
[421188956,1777225855714,-1117.0,0.00026123,2]
[421188957,1777225855723,-1630.71864287,0.00026197,2]
[421188958,1777225855733,-2364.72,0.000262,7]
[421188959,1777225855742,-167.45,0.00026266,14]
[421188960,1777225855751,-167.45,0.00026266,14]
[421188961,1777225855760,-167.45,0.00026266,14]
[421188962,1777225855769,-167.45,0.00026266,14]
[421188963,1777225855779,-167.45,0.00026266,14]
[421188964,1777225855788,-167.42,0.00026266,14]
[421188965,1777225855797,-151.0,0.00026297,7]
[421188966,1777225855806,-500.0,0.00026299,2]
[421188967,1777225855816,-500.0,0.00026299,2]
[421188968,1777225855825,-152.0,0.00026299,3]
[421188969,1777225855834,-455.77673057,0.00026308,2]
[421188970,1777225855844,-536.18,0.00026308,2]
[421188971,1777225855853,-500.42,0.00026308,2]
[421188972,1777225855863,-2800.0,0.00026309,7]
[421188973,1777225855872,-3000.0,0.00026309,7]
[421188974,1777225855881,-506.67,0.000265,7]
[421188975,1777225855890,-500.0,0.00026583,7]
[421188976,1777225855899,-392.75,0.00026588,2]
[421188977,1777225855908,-7979.42,0.000266,7]
[421188978,1777225855918,-151.88339601,0.00026614,2]
[421188979,1777225855927,-4072.5,0.00026867,2]
[421188980,1777225855936,-150.0,0.00026881,2]
[421188981,1777225855946,-506.67,0.000269,7]
[421188982,1777225855955,-569.051577,0.00027,2]
[421188983,1777225855966,-1226.14,0.00027,7]
[421188984,1777225855976,-200.0,0.00027,2]
[421188985,1777225855985,-154.74,0.00027076,2]
[421188986,1777225855994,-154.74,0.00027076,2]
[421188987,1777225856004,-154.74,0.00027076,2]
[421188988,1777225856013,-154.74,0.00027076,2]
[421188989,1777225856023,-154.74,0.00027076,2]
[421188990,1777225856033,-154.74,0.00027076,2]
[421188991,1777225856043,-154.74,0.00027078,2]